Workbook

Sheet Enable Macros
C2: Please follow five steps below to enable macros
C4: Step 1. Click the Office button in the upper left corner of the screen.
C5: At the bottom of this menu, click the Excel Options button.
C31: Step 2. Click the Trust Center button on the left. Then, at the bottom right, select Trust Center Settings.
C54: Step 3. In the new window, choose Macro Settings from the sidebar and select Disable all macros with notification
C55: This option keeps macros disabled but notifies users when macros attempt to run, allowing users to decide
C56: on a case-by-case basis which macros to enable.
C57: Click OK to exit this window.
C78: Step 4. For the new settings to take effect, it will be necessary to close Excel and reopen it.
C79: A security dialog box should appear beneath the Office ribbon the next time you attempt to run a spreadsheet that contains macros.
C90: Step 5. When the notification appears, click the Options button.
C91: Choose Enable this content from the options that appear to allow macros to run within the current spreadsheet.
C92: Click OK to close the window.

Sheet Financing Quick Quoter
L41: `

Sheet Express Application (hidden)

Sheet Data (hidden)
A1: Navitas Deal Builder | E1: Buttons | G1: Input_5 | H1: Input_22 | I1: Input_23 | J1: Input_24 | K1: Input_25 | M1: Payments Calculation | AA1: Password | AC1: Locked
A2: Text Box | B2: Section | C2: Input descrription | D2: Input | E2: http://dabuttonfactory.com/ | G2: Input_13 | H2: 12 Months | I2: FMV | J2: 0 Down | K2: 0 Points | AA2: ken2013 | AC2: Unlocked
A3: Input_1 | B3: Customer profile | C3: Company Name | D3: A | G3: AL | H3: 24 Months | I3: $1 Buyout | J3: 1 Down | K3: 1 Point | M3: Purchase Option: $1.00 | U3: Purchase Option: FMV | AC3: 1
A4: Input_2 | B4: Customer profile | C4: First Name | D4: B | G4: AK | H4: 36 Months | I4: Both plans | J4: 2 Down | K4: 2 Points | M4: Equipment Cost | N4: Cost category | O4: 12 | P4: 24 | Q4: 36 | R4: 48 | S4: 60 | U4: 12 | V4: 24 | W4: 36 | X4: 48 | Y4: 60 | AA4: Loaded | AC4: 2
A5: Input 2a | B5: Customer profile | C5: Last Name | G5: AZ | H5: 48 Months | K5: 3 Points | M5: $1,000 - $3,001 | N5: 1 | O5: 0.1012 | P5: 0.05313 | Q5: 0.03749 | U5: 0.084985 | V5: 0.046805 | W5: 0.03427
A6: Input_3 | B6: Customer profile | C6: Address | G6: AR | H6: 60 Months | K6: 4 Points | M6: $3,001 - $10,000 | N6: 2 | O6: 0.09548 | P6: 0.0495 | Q6: 0.03443 | R6: 0.02695 | S6: 0.02255 | U6: 0.07975 | V6: 0.04334 | W6: 0.03135 | X6: 0.02552 | Y6: 0.02178
A7: Input_4 | B7: Customer profile | C7: City | G7: CA | H7: All Terms | K7: 5 Points | M7: $10,001 - $20,000 | N7: 3 | O7: 0.093744 | P7: 0.0486 | Q7: 0.033804 | R7: 0.02646 | S7: 0.02214 | U7: 0.0783 | V7: 0.042552 | W7: 0.03078 | X7: 0.025056 | Y7: 0.021384
A8: Input_5 | B8: Customer profile | C8: State | G8: CO | M8: $20,001 - $25,000 | N8: 4 | O8: 0.092008 | P8: 0.0477 | Q8: 0.033178 | R8: 0.02597 | S8: 0.02173 | U8: 0.07685 | V8: 0.041764 | W8: 0.03021 | X8: 0.024592 | Y8: 0.020988
A9: Input_6 | B9: Customer profile | C9: Zip | E9: Buttons | G9: CT | M9: $25,001 - $50,000 | N9: 5 | O9: 0.09114 | P9: 0.04725 | Q9: 0.032865 | R9: 0.025725 | S9: 0.021525 | U9: 0.076125 | V9: 0.04137 | W9: 0.029925 | X9: 0.02436 | Y9: 0.02079
A10: Input_7 | B10: Customer profile | C10: Telephone Number | D10: c | E10: =MONTH(TODAY())&DAY(TODAY())&YEAR(TODAY())&"BA" -> 3132014BA | G10: DE | M10: Over $50,000 | N10: 6 | O10: 0.090272 | P10: 0.0468 | Q10: 0.032552 | R10: 0.02548 | S10: 0.02132 | U10: 0.0754 | V10: 0.040976 | W10: 0.02964 | X10: 0.024128 | Y10: 0.020592
A11: Input_8 | B11: Customer profile | C11: Email | D11: d | G11: FL
A12: Input_9 | B12: Dealer profile | C12: Vendor Name | E12: Apply | G12: GA | M12: Advanced Rentals | O12: 1 | P12: 2 | Q12: 2 | R12: 2 | S12: 2 | U12: 1 | V12: 2 | W12: 2 | X12: 2 | Y12: 2
A13: Input_10 | B13: Dealer profile | C13: Vendor Sales Contact | G13: HI
A14: Input_11 | B14: Dealer profile | C14: Address | G14: ID | M14: Equipment Cost | N14: =v_input_18 -> 50000 | P14: Purchase Option: $1.00 | S14: # | U14: Purchase Option: FMV
A15: Input_12 | B15: Dealer profile | C15: City | G15: IL | M15: Cost Category | N15: =MAX(N16:N21) -> 6 | P15: 12 | Q15: =IF($N$15=0,0,INDEX($O$5:$S$10,$N$15,S15)*$R$21) -> 0.090272 | R15: =IF(I_PLAN="FMV","",Q15*$N$14) -> 4513.6 | S15: 1 | U15: 12 | V15: =IF($N$15=0,0,INDEX($U$5:$Y$10,$N$15,S15)*$R$21) -> 0.0754 | W15: =IF(V15=0,"",V15*$N$14) -> 3770
A16: Input_13 | B16: Dealer profile | C16: State | E16: Changed | G16: IN | M16: $1,000 - $3,001 | N16: =IF(AND($N$14>=1000,$N$14<3000),1,"") ->  | P16: 24 | Q16: =IF($N$15=0,0,INDEX($O$5:$S$10,$N$15,S16)*$R$21) -> 0.0468 | R16: =IF(I_PLAN="FMV","",Q16*$N$14) -> 2340 | S16: 2 | U16: 24 | V16: =IF($N$15=0,0,INDEX($U$5:$Y$10,$N$15,S16)*$R$21) -> 0.040976 | W16: =IF(V16=0,"",V16*$N$14) -> 2048.8
A17: Input_14 | B17: Dealer profile | C17: Zip | E17: 1 | G17: IA | M17: $3,001 - $10,000 | N17: =IF(AND($N$14>=3000,$N$14<10000),2,"") ->  | P17: 36 | Q17: =IF($N$15=0,0,INDEX($O$5:$S$10,$N$15,S17)*$R$21) -> 0.032552 | R17: =IF(I_PLAN="FMV","",Q17*$N$14) -> 1627.6 | S17: 3 | U17: 36 | V17: =IF($N$15=0,0,INDEX($U$5:$Y$10,$N$15,S17)*$R$21) -> 0.02964 | W17: =IF(V17=0,"",V17*$N$14) -> 1482
A18: Input_15 | B18: Dealer profile | C18: Sales Contact Phone | G18: KS | M18: $10,001 - $20,000 | N18: =IF(AND($N$14>=10000,$N$14<=20000),3,"") ->  | P18: 48 | Q18: =IF($N$15=0,0,INDEX($O$5:$S$10,$N$15,S18)*$R$21) -> 0.02548 | R18: =IF(I_PLAN="FMV","",IF(Q18=0,"",Q18*$N$14)) -> 1274 | S18: 4 | U18: 48 | V18: =IF($N$15=0,0,INDEX($U$5:$Y$10,$N$15,S18)*$R$21) -> 0.024128 | W18: =IF(V18=0,"",V18*$N$14) -> 1206.4
A19: Input_16 | B19: Dealer profile | C19: Sales Contact Email | G19: KY | M19: $20,001 - $25,000 | N19: =IF(AND($N$14>=20000,$N$14<25000),4,"") ->  | P19: 60 | Q19: =IF($N$15=0,0,INDEX($O$5:$S$10,$N$15,S19)*$R$21) -> 0.02132 | R19: =IF(I_PLAN="FMV","",IF(Q19=0,"",Q19*$N$14)) -> 1066 | S19: 5 | U19: 60 | V19: =IF($N$15=0,0,INDEX($U$5:$Y$10,$N$15,S19)*$R$21) -> 0.020592 | W19: =IF(V19=0,"",V19*$N$14) -> 1029.6
A20: Input_17 | B20: Equipment description | C20: Equipment description | E20: 0 | F20: =128-v_input_17_sym&" symbols remaining" -> 128 symbols remaining | G20: LA | M20: $25,001 - $50,000 | N20: =IF(AND($N$14>=25000,$N$14<50000),5,"") -> 
A21: Input_18 | B21: Cost Builder | C21: Equipment Cost | D21: 50000 | G21: ME | M21: Over $50,000 | N21: =IF($N$14>=50000,6,"") -> 6 | P21: Commission Points | R21: =IF(v_Input_25="",1,VLOOKUP(v_Input_25,$P$22:$Q$27,2,0)) -> 1
A22: Input_19 | B22: Cost Builder | C22: Software Costs | G22: MD | P22: 0 Points | Q22: 1
A23: Input_20 | B23: Cost Builder | C23: Soft Costs | G23: MA | M23: Monthly payment | N23: 0 | P23: 1 Point | Q23: 1.01
A24: Input_21 | B24: Cost Builder | C24: Other Costs | G24: MI | P24: 2 Points | Q24: 1.02
B25: Cost Builder | C25: Total Costs | D25: 0 | G25: MN | P25: 3 Points | Q25: 1.03
A26: Input_22 | B26: Payment Builder | C26: Finance Term | G26: MS | P26: 4 Points | Q26: 1.04
A27: Input_23 | B27: Payment Builder | C27: Finance Plan | G27: MO | N27: =PAYMENT_SELECTION -> 0 | P27: 5 Points | Q27: 1.05
A28: Input_24 | B28: Payment Builder | C28: Advance Payments | G28: MT
A29: Input_25 | B29: Payment Builder | C29: Commission Points | G29: NE | Q29: PO | R29: FMV
G30: NV | Q30: 4513.6 | R30: 3770
A31: Input_26 | B31: NAVITAS Contact Information | C31: Representitative Name | D31: Amy Whipple | G31: NH | Q31: 2340 | R31: 2048.8
A32: Input_27 | B32: NAVITAS Contact Information | C32: Tittle | D32: Certified Financing Professional | G32: NJ | Q32: 1627.6 | R32: 1482
A33: Input_28 | B33: NAVITAS Contact Information | C33: Phone Number | D33: 904-543-2575 x 208 | G33: NM | Q33: 1274 | R33: 1206.4
A34: Input_29 | B34: NAVITAS Contact Information | C34: Fax Number | D34: 904-543-2574 | G34: NY | Q34: 1066 | R34: 1029.6
A35: Input_30 | B35: NAVITAS Contact Information | C35: Email | D35: amywhipple@navitaslease.com | G35: NC
G36: ND
A37: Customer Finance Proposal | G37: OH
A38: =v_Input_1&CHAR(13)&v_Input_2&" "&v_Input_2a&CHAR(13)&v_Input_3&CHAR(13)&v_Input_4&", "&v_Input_5&" "&v_Input_6&CHAR(13)&v_Input_7&CHAR(13)&v_Input_8 -> A B , c d | G38: OK
A39: ="Dear "&v_Input_2&"," -> Dear B, | C39: Current Selection | D39: Initial Selection | E39: 12 Months | F39: 1 | G39: OR
A40: Initial selection | B40: =IF(OR(I_TERM="",I_TERM="All Terms",I_PLAN="",I_PLAN="Both plans"),"","Choise_"&VLOOKUP(I_PLAN,E45:F46,2,0)&"_"&VLOOKUP(I_TERM,E39:F43,2,0)) -> Choise_1_3 | C40: =IF(OR(AND(I_TERM="All Terms",CURR_CHOISE=""),AND(I_TERM="All Terms",CHANGED=0)),"",OFFSET(LIST_INPUT_22,RIGHT(CURR_CHOISE,1)-1,0)) ->  | D40: 36 Months | E40: 24 Months | F40: 2 | G40: PA
A41: Current selection | C41: =IF(OR(AND(I_PLAN="Both Plans",CURR_CHOISE="",),AND(I_PLAN="Both Plans",CHANGED=0)),"",IF(RIGHT(LEFT(CURR_CHOISE,8),1)="2","Fair Market Value","$1 Buyout")) -> $1 Buyout | D41: $1 Buyout | E41: 36 Months | F41: 3 | G41: RI
C42: 1 | E42: 48 Months | F42: 4 | G42: SC
A43: =v_Input_9&CHAR(13)&v_Input_10&CHAR(13)&v_Input_11&CHAR(13)&v_Input_12&", "&v_Input_13&" "&v_Input_14&CHAR(13)&v_Input_15&CHAR(13)&v_Input_16 -> , | D43: =IF(OR(I_TERM="",I_TERM="All Terms",I_PLAN=""),"","Choise_1_"&VLOOKUP(I_TERM,E39:F43,2,0)) -> Choise_1_3 | E43: 60 Months | F43: 5 | G43: SD
A44: ="Navitas Lease Corp."&CHAR(13)&v_Input_26&CHAR(13)&v_Input_27&CHAR(13)&"T: "&v_Input_28&CHAR(13)&"F: "&v_Input_29&CHAR(13)&v_Input_30 -> Navitas Lease Corp. Amy Whipple Certified Financing Professional T: 904-543-2575 x 208 F: 904-543-2574 amywhipple@navitaslease.com | D44: =IF(OR(I_TERM="",I_TERM="All Terms",I_PLAN=""),"","Choise_2_"&VLOOKUP(I_TERM,E39:F43,2,0)) -> Choise_2_3 | G44: TN
E45: $1 Buyout | F45: 1 | G45: TX
A46: Express Application | E46: FMV | F46: 2 | G46: UT
A47: START_DATE | B47: Lessee information | C47: Business Start Date | G47: VT
A48: Input_31 | B48: Lessee information | C48: Company Name | D48: B | G48: VA
A49: Input_32 | B49: Lessee information | C49: Street Address | G49: WA
A50: Input_33 | B50: Lessee information | C50: City | G50: WV
A51: Input_34 | B51: Lessee information | C51: State | G51: WI
A52: Input_35 | B52: Lessee information | C52: Zip | G52: WY
A53: Input_36 | B53: Lessee information | C53: Telephone Number | D53: c
A54: Input_37 | B54: Lessee information | C54: Contact Name | D54: A
A55: Input_38 | B55: Lessee information | C55: Email | D55: d
A56: Input_38a | B56: Lessee information | C56: Federal Tax Number
A57: Input_39 | B57: Business Owner Personal Profile | C57: Principal Name
A58: Input_40 | B58: Business Owner Personal Profile | C58: Street Address
A59: Input_41 | B59: Business Owner Personal Profile | C59: City
A60: Input_42 | B60: Business Owner Personal Profile | C60: State
A61: Input_43 | B61: Business Owner Personal Profile | C61: Zip
A62: Input_44 | B62: Business Owner Personal Profile | C62: Tittle
A63: Input_45 | B63: Business Owner Personal Profile | C63: Telephone Number
A64: Input_46 | B64: Business Owner Personal Profile | C64: Social Security
A65: Input_47 | B65: Business Owner Personal Profile | C65: Ownership
A67: Autopopulate Express Application
A68: Input_31 | B68: Input_1 | C68: Company Name | D68: =v_Input_1 -> A
A69: Input_32 | B69: Input_3 | C69: Street Address | D69: =v_Input_3 -> 0
A70: Input_33 | B70: Input_4 | C70: City | D70: =v_Input_4 -> 0
A71: Input_34 | B71: Input_5 | C71: State | D71: =v_Input_5 -> 0
A72: Input_35 | B72: Input_6 | C72: Zip | D72: =v_Input_6 -> 0
A73: Input_37 | B73: Input_2 and Input 2a | C73: Contact Name | D73: =v_Input_2&" "&v_Input_2a -> B
A74: Input_38 | B74: Input_8 | C74: Email | D74: =v_Input_8 -> d
A75: Input_36 | B75: Input_7 | C75: Telephone Number | D75: =v_Input_7 -> c
A77: Email #1 Acceprt Quote
A78: To | B78: =p_Input_38 -> d | C78: =v_Input_30 -> amywhipple@navitaslease.com
A79: Subject | B79: Financing Quote Acceptance
A80: Attachment
A81: Body | B81: ="This email signifies my selection of the attached financing quote provided to my company. I would like to move forward and take the necessary next steps. Please contact me at your earliest convenience. I look forward to hearing from you." -> This email signifies my selection of the attached financing quote provided to my company. I would like to move forward and take the necessary next steps. Please contact me at your earliest convenience. I look forward to hearing from you.
A82: Email #2 Submit Application
A83: To | B83: =v_Input_30 -> amywhipple@navitaslease.com | C83: =v_Input_16 -> 0 | D83: =email_1_to3 -> 0
A84: Subject | B84: Financing Credit Application Submittal
A85: Attachment
A86: Body | B86: ="This email contains my finance application. Please contact me with any additional information you may require. I look forward to hearing from you." -> This email contains my finance application. Please contact me with any additional information you may require. I look forward to hearing from you.
A88: Email #3 Acceprt Quote
A89: To | B89: =v_Input_30 -> amywhipple@navitaslease.com | C89: =v_Input_16 -> 0 | D89: =email_1_to3 -> 0
A90: Subject | B90: Equipment Financing Quote
A91: Body | B91: Thank you for your interest in financing our equipment solution. Attached you will find our affordable monthly payment options to select from. Choose the payment that best meets your budget and email back to us at your earliest convenience. To expedite the process, please complete the credit application that is included with your quote. PLEASE NOTE: AFTER YOU OPEN THE ATTACHMENT PLEASE RENAME IT AND SAVE IT BEFORE REPLYING.
